lending/lending_fUSD_20250303
["ID","MTS","AMOUNT","RATE_DAILY","PERIOD"]
[355215590,1741018248136,-500.0,0.00014787,2]
[355215591,1741018248147,-500.0,0.00014787,2]
[355215592,1741018248163,-500.0,0.00014787,2]
[355215593,1741018248173,-571.35,0.00014787,2]
[355215594,1741018248184,-500.0,0.00014787,2]
[355215595,1741018248195,-500.0,0.00014787,2]
[355215596,1741018248204,-500.0,0.00014787,2]
[355215597,1741018248214,-506.19486546,0.00014787,2]
[355215598,1741018248223,-500.0,0.00014787,2]
[355215599,1741018248235,-500.0,0.00014787,2]
[355215600,1741018248246,-500.0,0.00014787,2]
[355215601,1741018248257,-500.0,0.00014787,2]
[355215602,1741018248267,-500.0,0.00014787,2]
[355215603,1741018248278,-500.0,0.00014787,2]
[355215604,1741018248291,-500.0,0.00014787,2]
[355215605,1741018248301,-500.0,0.00014787,2]
[355215606,1741018248311,-500.0,0.00014787,2]
[355215607,1741018248321,-759.57,0.00014787,2]
[355215608,1741018248330,-500.0,0.00014787,2]
[355215609,1741018248343,-500.0,0.00014787,2]
[355215610,1741018248354,-728.65,0.00014787,2]
[355215611,1741018248366,-500.0,0.00014787,2]
[355215612,1741018248375,-500.0,0.00014787,2]
[355215613,1741018248385,-500.0,0.00014787,2]
[355215614,1741018248396,-500.0,0.00014787,2]
[355215615,1741018248406,-500.0,0.00014787,2]
[355215616,1741018248415,-500.0,0.00014787,2]
[355215617,1741018248425,-500.0,0.00014787,2]
[355215618,1741018248436,-500.0,0.00014787,2]
[355215619,1741018248447,-500.0,0.00014787,2]
[355215620,1741018248457,-500.0,0.00014787,2]
[355215621,1741018248468,-561.23,0.00014787,2]
[355215622,1741018248478,-530.62082845,0.00014787,2]
[355215623,1741018248488,-500.0,0.00014787,2]
[355215624,1741018248498,-524.79,0.00014787,2]
[355215625,1741018248508,-500.0,0.00014787,2]
[355215626,1741018248518,-500.0,0.00014787,2]
[355215627,1741018248527,-500.0,0.00014787,2]
[355215628,1741018248538,-500.0,0.00014787,2]
[355215629,1741018248548,-500.0,0.00014787,2]
[355215630,1741018248558,-500.0,0.00014787,2]
[355215631,1741018248568,-500.0,0.00014787,2]
[355215632,1741018248577,-458.5840888,0.00014787,2]
[355215633,1741018248590,-500.0,0.00014787,2]
[355215634,1741018248600,-500.0,0.00014787,2]
[355215635,1741018248610,-500.0,0.00014787,2]
[355215636,1741018248620,-500.0,0.00014787,2]
[355215637,1741018248630,-500.0,0.00014787,2]
[355215638,1741018248640,-500.0,0.00014787,2]
[355215639,1741018248650,-190.44573391,0.00014787,2]
[355215640,1741018248660,-500.0,0.00014787,2]
[355215641,1741018248670,-500.0,0.00014787,2]
[355215642,1741018248680,-500.0,0.00014787,2]
[355215643,1741018248690,-500.0,0.00014787,2]
[355215644,1741018248700,-500.0,0.00014787,2]
[355215645,1741018248710,-500.0,0.00014787,2]
[355215646,1741018248720,-500.0,0.00014787,2]
[355215647,1741018248730,-500.0,0.00014787,2]
[355215648,1741018248740,-500.0,0.00014787,2]
[355215649,1741018248750,-500.0,0.00014787,2]
[355215650,1741018248760,-500.0,0.00014787,2]
[355215651,1741018248769,-500.0,0.00014787,2]
[355215652,1741018248779,-459.14529396,0.00014787,2]
[355215653,1741018248790,-500.0,0.00014787,2]
[355215654,1741018248800,-500.0,0.00014787,2]
[355215655,1741018248810,-500.0,0.00014787,2]
[355215656,1741018248819,-500.0,0.00014787,2]
[355215657,1741018248830,-500.0,0.00014787,2]
[355215658,1741018248842,-500.0,0.00014787,2]
[355215659,1741018248852,-500.0,0.00014787,2]
[355215660,1741018248862,-500.0,0.00014787,2]
[355215661,1741018248872,-500.0,0.00014787,2]
[355215662,1741018248883,-500.0,0.00014787,2]
[355215663,1741018248896,-1200.73,0.00014787,2]
[355215664,1741018248907,-500.0,0.00014787,2]
[355215665,1741018248918,-990.46,0.00014787,2]
[355215666,1741018248930,-500.0,0.00014787,2]
[355215667,1741018248941,-500.0,0.00014787,2]
[355215668,1741018248951,-500.0,0.00014787,2]
[355215669,1741018248961,-500.0,0.00014787,2]
[355215670,1741018248972,-500.0,0.00014787,2]
[355215671,1741018248982,-500.0,0.00014787,2]
[355215672,1741018248993,-500.0,0.00014787,2]
[355215673,1741018249004,-500.0,0.00014787,2]
[355215674,1741018249014,-515.42738718,0.00014787,2]
[355215675,1741018249024,-500.0,0.00014787,2]
[355215676,1741018249034,-868.19,0.00014787,2]
[355215677,1741018249046,-500.0,0.00014787,2]
[355215678,1741018249056,-599.17,0.00014787,2]
[355215679,1741018249066,-346.55368032,0.00014787,2]
[355215680,1741018249085,-1250.03,0.00014787,2]
[355215681,1741018249100,-500.0,0.00014787,2]
[355215682,1741018249110,-500.0,0.00014787,2]
[355215683,1741018249122,-573.04781237,0.00014787,2]
[355215684,1741018249133,-642.44,0.00014787,2]
[355215685,1741018249144,-500.0,0.00014787,2]
[355215686,1741018249154,-500.0,0.00014787,2]
[355215687,1741018249166,-1007.58,0.00014787,2]
[355215688,1741018249177,-500.0,0.00014787,2]
[355215689,1741018249188,-500.0,0.00014787,2]
[355215690,1741018249199,-629.14,0.00014787,2]
[355215691,1741018249210,-500.0,0.00014787,2]
[355215692,1741018249219,-500.0,0.00014787,2]
[355215693,1741018249229,-500.0,0.00014787,2]
[355215694,1741018249239,-200.0,0.00014787,2]
[355215695,1741018249250,-516.95,0.00014787,2]
[355215696,1741018249261,-500.0,0.00014787,2]
[355215697,1741018249270,-500.0,0.00014787,2]
[355215698,1741018249281,-570.24,0.00014787,2]
[355215699,1741018249291,-500.0,0.00014787,2]
[355215700,1741018249303,-709.95,0.00014787,2]
[355215701,1741018249313,-500.0,0.00014787,2]
[355215702,1741018249324,-500.0,0.00014787,2]
[355215703,1741018249336,-834.16,0.00014787,2]
[355215704,1741018249349,-500.0,0.00014787,2]
[355215705,1741018249363,-500.0,0.00014787,2]
[355215706,1741018249374,-500.0,0.00014787,2]
[355215707,1741018249385,-500.0,0.00014787,2]
[355215708,1741018249395,-500.0,0.00014787,2]
[355215709,1741018249407,-500.0,0.00014787,2]
[355215710,1741018249419,-908.13,0.00014787,2]
[355215711,1741018249429,-500.0,0.00014787,2]
[355215712,1741018249440,-500.0,0.00014787,2]
[355215713,1741018249456,-500.0,0.00014787,2]
[355215714,1741018249466,-503.76009094,0.00014787,2]
[355215715,1741018249476,-500.0,0.00014787,2]
[355215716,1741018249486,-500.0,0.00014787,2]
[355215717,1741018249497,-1183.04,0.00014787,2]
[355215718,1741018249507,-500.0,0.00014787,2]
[355215719,1741018249517,-500.0,0.00014787,2]
[355215720,1741018249527,-500.82,0.00014787,2]
[355215721,1741018249537,-500.0,0.00014787,2]
[355215722,1741018249547,-500.0,0.00014787,2]
[355215723,1741018249558,-503.50799212,0.00014787,2]
[355215724,1741018249776,-500.0,0.00014787,2]
[355215725,1741018249788,-500.0,0.00014787,2]
[355215726,1741018249798,-500.0,0.00014787,2]
[355215727,1741018249808,-500.0,0.00014787,2]
[355215728,1741018249820,-556.36541931,0.00014787,2]
[355215729,1741018249830,-743.0,0.00014787,2]
[355215730,1741018249842,-500.0,0.00014787,2]
[355215731,1741018249852,-500.0,0.00014787,2]
[355215732,1741018249863,-500.0,0.00014787,2]
[355215733,1741018249873,-500.0,0.00014787,2]
[355215734,1741018249883,-500.0,0.00014787,2]
[355215735,1741018249895,-500.0,0.00014787,2]
[355215736,1741018249906,-975.42,0.00014787,2]
[355215737,1741018249915,-500.0,0.00014787,2]
[355215738,1741018249926,-500.0,0.00014787,2]
[355215739,1741018249936,-500.0,0.00014787,2]
[355215740,1741018249948,-500.0,0.00014787,2]
[355215741,1741018249958,-500.0,0.00014787,2]
[355215742,1741018249968,-500.0,0.00014787,2]
[355215743,1741018249979,-500.0,0.00014787,2]
[355215744,1741018249989,-500.0,0.00014787,2]
[355215745,1741018249999,-854.15,0.00014787,2]
[355215746,1741018250010,-500.0,0.00014787,2]
[355215747,1741018250019,-500.0,0.00014787,2]
[355215748,1741018250029,-577.42,0.00014787,2]
[355215749,1741018250039,-500.0,0.00014787,2]
[355215750,1741018250050,-500.0,0.00014787,2]
[355215751,1741018250059,-653.74,0.00014787,2]
[355215752,1741018250070,-500.0,0.00014787,2]
[355215753,1741018250080,-500.0,0.00014787,2]
[355215754,1741018250091,-1471.43,0.00014787,2]
[355215755,1741018250102,-590.33,0.00014787,2]
[355215756,1741018250112,-500.0,0.00014787,2]
[355215757,1741018250125,-500.0,0.00014787,2]
[355215758,1741018250137,-500.0,0.00014787,2]
[355215759,1741018250148,-500.0,0.00014787,2]
[355215760,1741018250161,-500.0,0.00014787,2]
[355215761,1741018250171,-705.52,0.00014787,2]
[355215762,1741018250184,-500.0,0.00014787,2]
[355215763,1741018250195,-500.0,0.00014787,2]
[355215764,1741018250205,-500.0,0.00014787,2]
[355215765,1741018250216,-500.0,0.00014787,2]
[355215766,1741018250228,-500.0,0.00014787,2]
[355215767,1741018250238,-500.0,0.00014787,2]
[355215768,1741018250247,-500.0,0.00014787,2]
[355215769,1741018250257,-500.0,0.00014787,2]
[355215770,1741018250268,-741.26,0.00014787,2]
[355215771,1741018250278,-500.0,0.00014787,2]
[355215772,1741018250288,-587.66,0.00014787,2]
[355215773,1741018250299,-500.0,0.00014787,2]
[355215774,1741018250310,-526.90937477,0.00014787,2]
[355215775,1741018250320,-500.0,0.00014787,2]
[355215776,1741018250330,-500.0,0.00014787,2]
[355215777,1741018250342,-829.07,0.00014787,2]
[355215778,1741018250352,-564.3,0.00014787,2]
[355215779,1741018250362,-500.0,0.00014787,2]
[355215780,1741018250375,-500.0,0.00014787,2]
[355215781,1741018250386,-500.0,0.00014787,2]
[355215782,1741018250398,-979.18,0.00014787,2]
[355215783,1741018250407,-500.0,0.00014787,2]
[355215784,1741018250417,-500.0,0.00014787,2]
[355215785,1741018250427,-500.0,0.00014787,2]
[355215786,1741018250436,-500.0,0.00014787,2]
[355215787,1741018250446,-524.54,0.00014787,2]
[355215788,1741018250457,-500.0,0.00014787,2]
[355215789,1741018250469,-500.0,0.00014787,2]
[355215790,1741018250479,-500.0,0.00014787,2]
[355215791,1741018250488,-500.0,0.00014787,2]
[355215792,1741018250498,-229.32263,0.00014787,2]
[355215793,1741018250508,-500.0,0.00014787,2]
[355215794,1741018250517,-500.0,0.00014787,2]
[355215795,1741018250526,-500.0,0.00014787,2]
[355215796,1741018250538,-500.0,0.00014787,2]
[355215797,1741018250547,-1115.2,0.00014787,2]
[355215798,1741018250557,-500.0,0.00014787,2]
[355215799,1741018250566,-500.0,0.00014787,2]
[355215800,1741018250576,-500.0,0.00014787,2]
[355215801,1741018250585,-789.3,0.00014787,2]
[355215802,1741018250598,-500.0,0.00014787,2]
[355215803,1741018250608,-500.0,0.00014787,2]
[355215804,1741018250618,-500.0,0.00014787,2]
[355215805,1741018250629,-500.0,0.00014787,2]
[355215806,1741018250638,-500.0,0.00014787,2]
[355215807,1741018250648,-500.0,0.00014787,2]
[355215808,1741018250657,-500.0,0.00014787,2]
[355215809,1741018250667,-500.0,0.00014787,2]
[355215810,1741018250678,-500.0,0.00014787,2]
[355215811,1741018250687,-500.0,0.00014787,2]
[355215812,1741018250697,-500.0,0.00014787,2]
[355215813,1741018250707,-595.73,0.00014787,2]
[355215814,1741018250717,-500.0,0.00014787,2]
[355215815,1741018250726,-500.0,0.00014787,2]
[355215816,1741018250736,-500.0,0.00014787,2]
[355215817,1741018250746,-679.62,0.00014787,2]
[355215818,1741018250755,-500.0,0.00014787,2]
[355215819,1741018250764,-500.0,0.00014787,2]
[355215820,1741018250774,-699.54,0.00014787,2]
[355215821,1741018250784,-500.0,0.00014787,2]
[355215822,1741018250794,-500.0,0.00014787,2]
[355215823,1741018250804,-880.5,0.00014787,2]
[355215824,1741018250815,-500.0,0.00014787,2]
[355215825,1741018250824,-500.0,0.00014787,2]
[355215826,1741018250834,-249.88388092,0.00014787,2]
[355215827,1741018250847,-189.03,0.00014787,2]
[355215828,1741018250857,-500.0,0.00014787,2]
[355215829,1741018250866,-500.0,0.00014787,2]
[355215830,1741018250875,-500.0,0.00014787,2]
[355215831,1741018250885,-500.0,0.00014787,2]
[355215832,1741018250894,-500.0,0.00014787,2]
[355215833,1741018250904,-619.46,0.00014787,2]
[355215834,1741018250913,-500.0,0.00014787,2]
[355215835,1741018250924,-500.0,0.00014787,2]
[355215836,1741018250934,-524.92688697,0.00014787,2]
[355215837,1741018250944,-500.0,0.00014787,2]
[355215838,1741018250954,-500.0,0.00014787,2]
[355215839,1741018250964,-500.0,0.00014787,2]
[355215840,1741018250974,-500.0,0.00014787,2]
[355215841,1741018250984,-500.0,0.00014787,2]
[355215842,1741018250994,-500.0,0.00014787,2]
[355215843,1741018251004,-500.0,0.00014787,2]
[355215844,1741018251015,-500.0,0.00014787,2]
[355215845,1741018251025,-500.0,0.00014787,2]
[355215846,1741018251035,-500.0,0.00014787,2]
[355215847,1741018251045,-500.0,0.00014787,2]
[355215848,1741018251054,-702.13,0.00014787,2]
[355215849,1741018251064,-500.0,0.00014787,2]
[355215850,1741018251074,-748.78,0.00014787,2]
[355215851,1741018251083,-500.0,0.00014787,2]
[355215852,1741018251093,-500.0,0.00014787,2]
[355215853,1741018251103,-500.0,0.00014787,2]
[355215854,1741018251113,-1289.08,0.00014787,2]
[355215855,1741018251122,-532.8,0.00014787,2]
[355215856,1741018251131,-500.0,0.00014787,2]
[355215857,1741018251141,-500.0,0.00014787,2]
[355215858,1741018251150,-500.0,0.00014787,2]
[355215859,1741018251159,-500.0,0.00014787,2]
[355215860,1741018251169,-500.0,0.00014787,2]
[355215861,1741018251181,-500.0,0.00014787,2]
[355215862,1741018251190,-500.0,0.00014787,2]
[355215863,1741018251200,-740.14,0.00014787,2]
[355215864,1741018251211,-534.45,0.00014787,2]
[355215865,1741018251221,-500.0,0.00014787,2]
[355215866,1741018251230,-656.04,0.00014787,2]
[355215867,1741018251240,-500.0,0.00014787,2]
[355215868,1741018251260,-500.0,0.00014787,2]
[355215869,1741018251280,-500.0,0.00014787,2]
[355215870,1741018251293,-500.0,0.00014787,2]
[355215871,1741018251303,-500.0,0.00014787,2]
[355215872,1741018251312,-500.0,0.00014787,2]
[355215873,1741018251323,-500.0,0.00014787,2]
[355215874,1741018251333,-500.0,0.00014787,2]
[355215875,1741018251343,-500.0,0.00014787,2]
[355215876,1741018251355,-500.0,0.00014787,2]
[355215877,1741018251367,-500.0,0.00014787,2]
[355215878,1741018251377,-2921.79,0.00014787,2]
[355215879,1741018251387,-500.0,0.00014787,2]
[355215880,1741018251396,-1092.16,0.00014787,2]
[355215881,1741018251408,-525.5,0.00014787,2]
[355215882,1741018251417,-1109.84,0.00014787,2]
[355215883,1741018251427,-500.0,0.00014787,2]
[355215884,1741018251437,-500.0,0.00014787,2]
[355215885,1741018251446,-500.0,0.00014787,2]
[355215886,1741018251456,-500.0,0.00014787,2]
[355215887,1741018251465,-500.0,0.00014787,2]
[355215888,1741018251474,-500.0,0.00014787,2]
[355215889,1741018251484,-889.12,0.00014787,2]
[355215890,1741018251493,-500.0,0.00014787,2]
[355215891,1741018251503,-645.02,0.00014787,2]
[355215892,1741018251515,-500.0,0.00014787,2]
[355215893,1741018251524,-500.0,0.00014787,2]
[355215894,1741018251534,-500.0,0.00014787,2]
[355215895,1741018251543,-500.0,0.00014787,2]
[355215896,1741018251555,-797.96,0.00014787,2]
[355215897,1741018251564,-990.94,0.00014787,2]
[355215898,1741018251573,-3760.23,0.00014787,2]
[355215899,1741018251583,-500.0,0.00014787,2]
[355215900,1741018251594,-965.35,0.00014787,2]
[355215901,1741018251604,-500.0,0.00014787,2]
[355215902,1741018251613,-500.0,0.00014787,2]
[355215903,1741018251623,-500.0,0.00014787,2]
[355215904,1741018251632,-500.0,0.00014787,2]
[355215905,1741018251641,-509.46693279,0.00014787,2]
[355215906,1741018251651,-500.0,0.00014787,2]
[355215907,1741018251661,-500.0,0.00014787,2]
[355215908,1741018251670,-500.0,0.00014787,2]
[355215909,1741018251679,-500.0,0.00014787,2]
[355215910,1741018251689,-500.0,0.00014787,2]
[355215911,1741018251699,-1000.0,0.00014787,2]
[355215912,1741018251709,-500.0,0.00014787,2]
[355215913,1741018251719,-500.0,0.00014787,2]
[355215914,1741018251729,-500.0,0.00014787,2]
[355215915,1741018251739,-500.0,0.00014787,2]
[355215916,1741018251749,-500.0,0.00014787,2]
[355215917,1741018251759,-500.0,0.00014787,2]
[355215918,1741018251768,-1916.05,0.00014787,2]
[355215919,1741018251778,-7421.25,0.00014787,2]
[355215920,1741018251787,-500.0,0.00014787,2]
[355215921,1741018251797,-500.0,0.00014787,2]
[355215922,1741018251807,-931.78,0.00014787,2]
[355215923,1741018251817,-500.0,0.00014787,2]
[355215924,1741018251826,-500.0,0.00014787,2]
[355215925,1741018251837,-500.0,0.00014787,2]
[355215926,1741018251853,-500.0,0.00014787,2]
[355215927,1741018251864,-500.0,0.00014787,2]
[355215928,1741018251873,-1605.93,0.00014787,2]
[355215929,1741018251883,-500.0,0.00014787,2]
[355215930,1741018251893,-500.0,0.00014787,2]
[355215931,1741018251902,-507.79568651,0.00014787,2]
[355215932,1741018251913,-500.0,0.00014787,2]
[355215933,1741018251922,-1055.51910024,0.00014787,2]
[355215934,1741018251950,-467.20089976,0.00014787,2]
[355215935,1741018251960,-500.0,0.00014787,2]
[355215936,1741018251970,-500.0,0.00014787,2]
[355215937,1741018251979,-500.0,0.00014787,2]
[355215938,1741018251989,-500.0,0.00014787,2]
[355215939,1741018251998,-504.61053366,0.00014787,2]
[355215940,1741018252009,-500.0,0.00014787,2]
[355215941,1741018252018,-565.19,0.00014787,2]
[355215942,1741018252028,-704.53,0.00014787,2]
[355215943,1741018252038,-500.0,0.00014787,2]
[355215944,1741018252048,-782.83,0.00014787,2]
[355215945,1741018252058,-500.0,0.00014787,2]
[355215946,1741018252068,-341.03565877,0.00014787,2]
[355215947,1741018252078,-424.75947333,0.00014787,2]
[355215948,1741018252133,-563.24052667,0.00014787,2]
[355215949,1741018252144,-500.0,0.00014787,2]
[355215950,1741018252154,-500.0,0.00014787,2]
[355215951,1741018252163,-500.0,0.00014787,2]
[355215952,1741018252173,-615.18,0.00014787,2]
[355215953,1741018252183,-303.5889765,0.00014787,2]
[355215954,1741018252193,-500.0,0.00014787,2]
[355215955,1741018252203,-500.0,0.00014787,2]
[355215956,1741018252213,-500.0,0.00014787,2]
[355215957,1741018252222,-1590.8,0.00014787,2]
[355215958,1741018252232,-576.13,0.00014787,2]
[355215959,1741018252242,-500.0,0.00014787,2]
[355215960,1741018252252,-500.0,0.00014787,2]
[355215961,1741018252263,-500.0,0.00014787,2]
[355215962,1741018252273,-500.0,0.00014787,2]
[355215963,1741018252283,-241.56574832,0.00014787,2]
[355215964,1741018252293,-500.0,0.00014787,2]
[355215965,1741018252303,-593.96,0.00014787,2]
[355215966,1741018252313,-500.0,0.00014787,2]
[355215967,1741018252323,-700.17,0.00014787,2]
[355215968,1741018252333,-500.0,0.00014787,2]
[355215969,1741018252346,-500.0,0.00014787,2]
[355215970,1741018252359,-590.17479474,0.00014787,2]
[355215971,1741018252369,-500.0,0.00014787,2]
[355215972,1741018252380,-500.0,0.00014787,2]
[355215973,1741018252390,-500.0,0.00014787,2]
[355215974,1741018252401,-500.0,0.00014787,2]
[355215975,1741018252412,-1121.4,0.00014787,2]
[355215976,1741018252422,-1057.53,0.00014787,2]
[355215977,1741018252432,-500.0,0.00014787,2]
[355215978,1741018252442,-571.27,0.00014787,2]
[355215979,1741018252452,-500.0,0.00014787,2]
[355215980,1741018252465,-1895.58,0.00014787,2]
[355215981,1741018252475,-500.0,0.00014787,2]
[355215982,1741018252485,-620.9,0.00014787,2]
[355215983,1741018252495,-833.28,0.00014787,2]
[355215984,1741018252505,-2041.09,0.00014787,2]
[355215985,1741018252516,-531.88,0.00014787,2]
[355215986,1741018252526,-500.0,0.00014787,2]
[355215987,1741018252536,-1184.46,0.00014787,2]
[355215988,1741018252545,-9374.14,0.00014787,2]
[355215989,1741018252555,-500.0,0.00014787,2]
[355215990,1741018252564,-500.0,0.00014787,2]
[355215991,1741018252574,-500.0,0.00014787,2]
[355215992,1741018252583,-500.0,0.00014787,2]
[355215993,1741018252595,-500.0,0.00014787,2]
[355215994,1741018252605,-1622.03,0.00014787,2]
[355215995,1741018252614,-500.0,0.00014787,2]
[355215996,1741018252624,-500.0,0.00014787,2]
[355215997,1741018252634,-500.0,0.00014787,2]
[355215998,1741018252644,-2214.11,0.00014787,2]
[355215999,1741018252653,-500.0,0.00014787,2]
[355216000,1741018252663,-500.0,0.00014787,2]
[355216001,1741018252673,-500.0,0.00014787,2]
[355216002,1741018252682,-1586.78,0.00014787,2]
[355216003,1741018252692,-537.82,0.00014787,2]
[355216004,1741018252702,-756.33,0.00014787,2]
[355216005,1741018252712,-500.0,0.00014787,2]
[355216006,1741018252723,-578.88,0.00014787,2]
[355216007,1741018252732,-872.39,0.00014787,2]
[355216008,1741018252741,-500.0,0.00014787,2]
[355216009,1741018252752,-500.0,0.00014787,2]
[355216010,1741018252762,-516.11,0.00014787,2]
[355216011,1741018252773,-500.0,0.00014787,2]
[355216012,1741018252783,-500.0,0.00014787,2]
[355216013,1741018252792,-2300.59,0.00014787,2]
[355216014,1741018252802,-500.0,0.00014787,2]
[355216015,1741018252812,-30855.33,0.00014787,2]
[355216016,1741018252822,-500.0,0.00014787,2]
[355216017,1741018252832,-500.0,0.00014787,2]
[355216018,1741018252844,-500.0,0.00014787,2]
[355216019,1741018252854,-690.14,0.00014787,2]
[355216020,1741018252864,-837.55,0.00014787,2]
[355216021,1741018252873,-500.0,0.00014787,2]
[355216022,1741018252883,-500.0,0.00014787,2]
[355216023,1741018252892,-505.84609822,0.00014787,2]
[355216024,1741018252902,-965.82,0.00014787,2]
[355216025,1741018252912,-632.49,0.00014787,2]
[355216026,1741018252922,-781.73,0.00014787,2]
[355216027,1741018252932,-500.0,0.00014787,2]
[355216028,1741018252941,-500.0,0.00014787,2]
[355216029,1741018252953,-522.00013403,0.00014787,2]
[355216030,1741018252963,-693.53,0.00014787,2]
[355216031,1741018252974,-1891.44,0.00014787,2]
[355216032,1741018252984,-501.84,0.00014787,2]
[355216033,1741018252993,-500.0,0.00014787,2]
[355216034,1741018253002,-500.0,0.00014787,2]
[355216035,1741018253012,-500.0,0.00014787,2]
[355216036,1741018253022,-500.0,0.00014787,2]
[355216037,1741018253031,-500.0,0.00014787,2]
[355216038,1741018253040,-3413.43,0.00014787,2]
[355216039,1741018253050,-500.0,0.00014787,2]
[355216040,1741018253059,-500.0,0.00014787,2]
[355216041,1741018253069,-500.0,0.00014787,2]
[355216042,1741018253079,-500.0,0.00014787,2]
[355216043,1741018253090,-500.0,0.00014787,2]
[355216044,1741018253099,-970.71,0.00014787,2]
[355216045,1741018253109,-27487.4,0.00014787,2]
[355216046,1741018253119,-500.0,0.00014787,2]
[355216047,1741018253128,-500.0,0.00014787,2]
[355216048,1741018253138,-682.67,0.00014787,2]
[355216049,1741018253148,-503.04044503,0.00014788,2]
[355216050,1741018253158,-500.0,0.00014788,2]
[355216051,1741018253177,-438.95729888,0.00014788,2]
[355216052,1741018253186,-500.0,0.00014788,2]
[355216053,1741018253195,-500.0,0.00014788,2]
[355216054,1741018253205,-174.30109714,0.00014788,2]
[355216055,1741018253214,-500.0,0.00014788,2]
[355216056,1741018253418,-151.09581245,0.00014788,2]
[355216057,1741018253428,-500.0,0.00014788,2]
[355216058,1741018253439,-500.0,0.00014788,2]
[355216059,1741018253449,-500.0,0.00014788,2]
[355216060,1741018253458,-500.0,0.00014788,2]
[355216061,1741018253468,-500.0,0.00014788,2]
[355216062,1741018253477,-500.0,0.00014788,2]
[355216063,1741018253487,-500.0,0.00014788,2]
[355216064,1741018253496,-500.0,0.00014788,2]
[355216065,1741018253505,-500.0,0.00014788,2]
[355216066,1741018253515,-500.0,0.00014788,2]
[355216067,1741018253525,-1841.91,0.00014788,2]
[355216068,1741018253534,-500.0,0.00014788,2]
[355216069,1741018253543,-500.0,0.00014788,2]
[355216070,1741018253552,-500.0,0.00014788,2]
[355216071,1741018253561,-500.0,0.00014788,2]
[355216072,1741018253571,-500.0,0.00014788,2]
[355216073,1741018253580,-500.0,0.00014788,2]
[355216074,1741018253589,-567.39,0.00014788,2]
[355216075,1741018253602,-500.0,0.00014788,2]
[355216076,1741018253611,-500.0,0.00014788,2]
[355216077,1741018253620,-911.06,0.00014788,2]
[355216078,1741018253630,-705.88,0.00014788,2]
[355216079,1741018253640,-539.15,0.00014788,2]
[355216080,1741018253649,-500.0,0.00014788,2]
[355216081,1741018253659,-865.47,0.00014788,2]
[355216082,1741018253668,-380.2479977,0.00014788,2]
[355216083,1741018254799,-500.0,0.00014786,2]
[355216084,1741018254809,-538.3020023,0.00014788,2]
[355216085,1741018254820,-534.56,0.00014788,2]
[355216086,1741018254829,-815.09,0.00014788,2]
[355216087,1741018254839,-16.8479977,0.00014788,2]
[355216088,1741018254852,-483.1520023,0.00014788,2]
[355216089,1741018254862,-79.5008885,0.00014788,2]